bitfinex/quotes_BTCUSD_20241004
["timestamp","ask_amount","ask_price","bid_price","bid_amount"]
[1728063608462,0.18335811,62125.0,62124.0,0.00082]
[1728063614348,0.18335811,62125.0,62124.0,0.18635811]
[1728063614722,0.02239311,62125.0,62124.0,0.18635811]
[1728063614939,0.16685828,62125.0,62124.0,0.18635811]
[1728063616602,0.16685828,62125.0,62124.0,0.19135811]
[1728063616831,0.00589328,62125.0,62124.0,0.19135811]
[1728063617302,0.16685828,62125.0,62124.0,0.19635811]
[1728063617741,0.00589328,62125.0,62124.0,0.19635811]
[1728063617971,0.16685828,62125.0,62124.0,0.19635811]
[1728063618181,0.16685828,62125.0,62124.0,0.18635811]
[1728063618182,0.160965,62125.0,62124.0,0.18635811]
[1728063618397,0.00587181,62125.0,62124.0,0.19135811]
[1728063618612,0.00587181,62125.0,62124.0,0.35732611]
[1728063619085,0.001644,62127.0,62126.0,0.160963]
[1728063619517,0.00750358,62127.0,62126.0,0.160963]
[1728063619764,0.001644,62127.0,62126.0,0.160963]
[1728063619985,0.00751615,62127.0,62126.0,0.160963]
[1728063620215,0.001644,62127.0,62126.0,0.160963]
[1728063620461,0.00753081,62127.0,62126.0,0.160963]
[1728063620753,0.00752994,62127.0,62126.0,0.160963]
[1728063621232,0.162604,62127.0,62126.0,0.005]
[1728063621486,0.16849476,62127.0,62126.0,0.005]
[1728063621738,0.16849476,62127.0,62126.0,0.01]
[1728063622440,0.00753476,62127.0,62126.0,0.005]
[1728063622666,0.16849476,62127.0,62126.0,0.005]
[1728063623090,0.16849476,62127.0,62124.0,0.161787]
[1728063623328,0.16849476,62127.0,62126.0,0.001]
[1728063623537,0.16849476,62127.0,62126.0,0.002]
[1728063623977,0.16849476,62127.0,62126.0,0.001]
[1728063624777,0.160965,62125.0,62124.0,0.00282]
[1728063624888,0.160965,62125.0,62124.0,0.00082]
[1728063625104,0.160965,62125.0,62124.0,0.00182]
[1728063625105,0.16686694,62125.0,62124.0,0.00182]
[1728063625335,0.00590194,62125.0,62124.0,0.00182]
[1728063625567,0.16686694,62125.0,62124.0,0.00182]
[1728063625800,0.160965,62125.0,62124.0,0.00082]
[1728063626065,0.16686694,62125.0,62124.0,0.00082]
[1728063626788,0.00590194,62125.0,62124.0,0.00482]
[1728063627021,0.00590194,62125.0,62124.0,0.165788]
[1728063627284,0.162606,62127.0,62124.0,0.165788]
[1728063627524,0.162606,62127.0,62124.0,0.00482]
[1728063627525,0.001644,62127.0,62124.0,0.00482]
[1728063627756,0.00590612,62126.0,62124.0,0.01182]
[1728063627980,0.00590612,62126.0,62124.0,0.168787]
[1728063628435,0.00590612,62126.0,62124.0,0.00082]
[1728063628900,0.00590612,62126.0,62124.0,0.166787]
[1728063629131,0.00590612,62126.0,62124.0,0.161787]
[1728063629361,0.16687012,62126.0,62124.0,0.00682]
[1728063629583,0.00590612,62126.0,62124.0,0.00682]
[1728063630094,0.00590612,62126.0,62124.0,0.01182]
[1728063630095,0.160965,62125.0,62124.0,0.01182]
[1728063630318,0.257565,62125.0,62124.0,0.01182]
[1728063630542,0.26346694,62125.0,62124.0,0.01182]
[1728063630766,0.26346694,62125.0,62124.0,0.00682]
[1728063630994,0.26346694,62125.0,62124.0,0.01282]
[1728063631226,0.31140042,62125.0,62124.0,0.00682]
[1728063631477,0.33536717,62125.0,62124.0,0.00082]
[1728063631718,0.26346694,62125.0,62124.0,0.00782]
[1728063631957,0.26346694,62125.0,62124.0,0.00182]
[1728063632195,0.33540548,62125.0,62124.0,0.00182]
[1728063632547,0.36436491,62125.0,62124.0,0.00182]
[1728063632633,0.46436491,62125.0,62124.0,0.00182]
[1728063633130,0.46436491,62125.0,62124.0,0.00082]
[1728063634269,0.36849794,62125.0,62124.0,0.00082]
[1728063635169,0.37013794,62125.0,62124.0,0.00082]
[1728063635401,0.37113794,62125.0,62124.0,0.00082]
[1728063635637,0.37013794,62125.0,62124.0,0.00082]
[1728063635872,0.37213794,62125.0,62124.0,0.00082]
[1728063636372,0.44405824,62125.0,62124.0,0.00082]
[1728063637546,0.42006373,62125.0,62124.0,0.00082]
[1728063637776,0.17553794,62125.0,62124.0,0.00082]
[1728063638674,0.17346894,62125.0,62124.0,0.00082]
[1728063639127,0.17446894,62125.0,62124.0,0.00082]
[1728063639421,0.17746894,62125.0,62124.0,0.00082]
[1728063639682,0.17746894,62125.0,62124.0,0.00282]
[1728063639921,0.17346894,62125.0,62124.0,0.00082]
[1728063640139,0.17346894,62125.0,62124.0,0.00282]
[1728063640398,0.17346894,62125.0,62124.0,0.00482]
[1728063640619,0.17346894,62125.0,62124.0,0.00282]
[1728063640852,0.17346894,62125.0,62124.0,0.00582]
[1728063641563,0.17346894,62125.0,62124.0,0.00382]
[1728063641787,0.17346894,62125.0,62124.0,0.00682]
[1728063642237,0.17346894,62125.0,62124.0,0.00082]
[1728063642457,0.17346894,62125.0,62124.0,0.00282]
[1728063643194,0.17346894,62125.0,62124.0,0.00382]
[1728063643436,0.17346894,62125.0,62124.0,0.00082]
[1728063643936,0.17346894,62125.0,62124.0,0.00382]
[1728063644626,0.24966894,62125.0,62124.0,0.00382]
[1728063645575,0.24966894,62125.0,62124.0,0.00082]
[1728063645797,0.24966894,62125.0,62124.0,0.00182]
[1728063646019,0.25466894,62125.0,62124.0,0.00182]
[1728063646248,0.24966894,62125.0,62124.0,0.00082]
[1728063646482,0.25366894,62125.0,62124.0,0.00082]
[1728063646710,0.25766894,62125.0,62124.0,0.00082]
[1728063647183,0.25866894,62125.0,62124.0,0.00082]
[1728063647430,0.18546894,62125.0,62124.0,0.00082]
[1728063648654,0.17346894,62125.0,62124.0,0.00082]
[1728063648872,0.17946894,62125.0,62124.0,0.00082]
[1728063649325,0.17646894,62125.0,62124.0,0.00282]
[1728063649550,0.17646894,62125.0,62124.0,0.00582]
[1728063649794,0.17346894,62125.0,62124.0,0.00382]
[1728063650030,0.17346894,62125.0,62124.0,0.00582]
[1728063650550,0.17346894,62125.0,62124.0,0.01082]
[1728063654172,0.01257294,62125.0,62124.0,0.01082]
[1728063654397,0.17353794,62125.0,62124.0,0.01082]
[1728063654629,0.01257294,62125.0,62124.0,0.01082]
[1728063655091,0.01257294,62125.0,62124.0,0.00582]
[1728063655606,0.17353794,62125.0,62124.0,0.00582]
[1728063655818,0.17353794,62125.0,62124.0,0.01182]
[1728063656042,0.17353794,62125.0,62124.0,0.00082]
[1728063656229,0.17353794,62125.0,62124.0,0.01482]
[1728063657617,0.01257294,62125.0,62124.0,0.01482]
[1728063657855,0.01257294,62125.0,62124.0,0.175788]
[1728063658311,0.00164,62125.0,62124.0,0.175788]
[1728063658538,0.0119478,62125.0,62124.0,0.01482]
[1728063658734,0.0119478,62125.0,62124.0,0.175788]
[1728063658735,0.01194369,62125.0,62124.0,0.175788]
[1728063659521,0.01194369,62125.0,62124.0,0.01482]
[1728063660248,0.17290869,62125.0,62124.0,0.01482]
[1728063660740,0.01194369,62125.0,62124.0,0.175788]
[1728063660979,0.01194369,62125.0,62124.0,0.01482]
[1728063661236,0.01194369,62125.0,62124.0,0.175788]
[1728063661731,0.00164,62125.0,62124.0,0.175788]
[1728063661975,0.00164,62125.0,62124.0,0.01482]
[1728063662221,0.162605,62125.0,62124.0,0.01482]
[1728063662462,0.17291691,62125.0,62124.0,0.01482]
[1728063662944,0.01195191,62125.0,62124.0,0.01482]
[1728063663184,0.01195191,62125.0,62124.0,0.175788]
[1728063666709,0.00164,62125.0,62124.0,0.175788]
[1728063666942,0.001644,62127.0,62126.0,0.160963]
[1728063667174,0.001644,62127.0,62126.0,0.38957017]
[1728063667622,0.001644,62127.0,62126.0,0.341263]
[1728063667849,0.001644,62127.0,62126.0,0.57775688]
[1728063668088,0.001644,62127.0,62126.0,0.60191046]
[1728063668314,0.001644,62127.0,62126.0,0.62606405]
[1728063668554,0.001642,62130.0,62129.0,0.167955]
[1728063668775,0.001644,62146.0,62142.0,0.160921]
[1728063668776,0.2421461,62144.0,62142.0,0.160921]
[1728063669026,0.2421461,62144.0,62142.0,0.237821]
[1728063669268,0.00973369,62143.0,62142.0,0.42335911]
[1728063669507,0.001642,62143.0,62142.0,0.42535911]
[1728063670489,0.160881,62158.0,62142.0,0.42535911]
[1728063670490,0.001642,62175.0,62158.0,0.0426]
[1728063670720,0.001642,62175.0,62166.0,0.160859]
[1728063670721,0.2405041,62171.0,62166.0,0.160859]
[1728063670956,0.2405041,62171.0,62170.0,0.160849]
[1728063671149,0.001642,62175.0,62166.0,0.18553811]
[1728063671445,0.001642,62175.0,62168.0,0.321705]
[1728063671701,0.001642,62175.0,62174.0,0.34637611]
[1728063673157,0.001642,62175.0,62174.0,0.35737611]
[1728063674381,0.001642,62175.0,62174.0,0.34637611]
[1728063674626,0.001642,62175.0,62174.0,0.36037611]
[1728063675110,0.001642,62175.0,62174.0,0.34637611]
[1728063675597,0.001642,62175.0,62174.0,0.35937611]
[1728063675843,0.001642,62175.0,62174.0,0.37237611]
[1728063676109,0.001642,62175.0,62174.0,0.43037611]
[1728063676343,0.001642,62175.0,62174.0,0.45837611]
[1728063676576,0.001642,62175.0,62174.0,0.44437611]
[1728063676819,0.001642,62175.0,62174.0,0.44237611]
[1728063677052,0.001642,62175.0,62174.0,0.45537611]
[1728063677528,0.001642,62175.0,62174.0,0.35937611]
[1728063677754,0.001642,62175.0,62174.0,0.37337611]
[1728063678242,0.001642,62175.0,62174.0,0.35937611]
[1728063678733,0.001642,62175.0,62174.0,0.34637611]
[1728063678963,0.001642,62175.0,62174.0,0.36037611]
[1728063679671,0.001642,62175.0,62174.0,0.37437611]
[1728063680639,0.001642,62175.0,62174.0,0.36037611]
[1728063680895,0.001642,62175.0,62174.0,0.37437611]
[1728063681383,0.001642,62175.0,62174.0,0.34837611]
[1728063681642,0.0002,62199.0,62198.0,0.160776]
[1728063681880,0.0002,62199.0,62198.0,0.34631411]
[1728063682362,0.01318924,62199.0,62198.0,0.34631411]
[1728063682602,0.0002,62199.0,62198.0,0.34631411]
[1728063683306,0.0002,62199.0,62198.0,0.18553811]
[1728063683553,0.0002,62199.0,62189.0,0.005]
[1728063683554,0.00102,62199.0,62194.0,0.18553811]
[1728063683810,0.00102,62199.0,62195.0,0.2405041]
[1728063684034,0.00102,62199.0,62198.0,0.011]
[1728063684268,0.00102,62199.0,62198.0,0.19653811]
[1728063684968,0.00102,62199.0,62198.0,0.19853811]
[1728063685190,0.00102,62199.0,62198.0,0.18953811]
[1728063685191,0.161794,62199.0,62198.0,0.18953811]
[1728063685420,0.161794,62199.0,62198.0,0.19253811]
[1728063686102,0.00102,62199.0,62198.0,0.19253811]
[1728063686365,0.161794,62199.0,62198.0,0.19253811]
[1728063686658,0.332594,62199.0,62198.0,0.007]
[1728063686880,0.16082,62181.0,62180.0,0.2405041]
[1728063687351,0.160811,62185.0,62180.0,0.2405041]
[1728063687571,0.321613,62187.0,62180.0,0.2405041]
[1728063687819,0.321613,62187.0,62178.0,0.34636511]
[1728063687820,0.160811,62185.0,62178.0,0.34636511]
[1728063688071,0.321611,62187.0,62179.0,0.2405041]
[1728063688296,0.160796,62191.0,62182.0,0.18553811]
[1728063688529,0.321609,62188.0,62182.0,0.18553811]
[1728063688786,0.160814,62184.0,62182.0,0.18553811]
[1728063689036,0.321609,62188.0,62168.0,0.18553811]
[1728063689037,0.160841,62173.0,62168.0,0.18553811]
[1728063689263,0.321664,62177.0,62168.0,0.18553811]
[1728063689503,0.160822,62181.0,62176.0,0.18553811]
[1728063689769,0.160824,62180.0,62176.0,0.18553811]
[1728063690013,0.321642,62181.0,62176.0,0.18553811]
[1728063690254,0.160829,62178.0,62176.0,0.18553811]
[1728063690475,0.160831,62177.0,62176.0,0.18553811]
[1728063690696,0.160837,62175.0,62172.0,0.18553811]
[1728063690911,0.160837,62175.0,62173.0,0.2405041]
[1728063691147,0.160834,62176.0,62173.0,0.2405041]
[1728063691434,0.160834,62176.0,62172.0,0.18553811]
[1728063691669,0.482495,62177.0,62176.0,0.008]
[1728063691884,0.160831,62177.0,62176.0,0.004]
[1728063692348,0.418537,62182.0,62172.0,0.18553811]
[1728063692590,0.0969,62182.0,62173.0,0.2405041]
[1728063693075,0.160833,62176.0,62173.0,0.2405041]
[1728063693517,0.01337422,62175.0,62173.0,0.2405041]
[1728063693744,0.160838,62174.0,62173.0,0.005]
[1728063694232,0.01336739,62174.0,62173.0,0.160841]
[1728063694463,0.01336739,62174.0,62173.0,0.165841]
[1728063694698,0.160833,62177.0,62173.0,0.165841]
[1728063694922,0.01336739,62174.0,62173.0,0.160841]
[1728063695158,0.322465,62181.0,62173.0,0.328681]
[1728063695408,0.01338104,62176.0,62175.0,0.160835]
[1728063695651,0.160823,62180.0,62175.0,0.50720911]
[1728063695899,0.160828,62179.0,62175.0,0.50721011]
[1728063696116,0.160823,62180.0,62176.0,0.160832]
[1728063696339,0.00082,62181.0,62176.0,0.2405041]
[1728063696637,0.00082,62181.0,62180.0,0.160823]
[1728063696892,0.00082,62181.0,62180.0,0.4013271]
[1728063697109,0.00082,62181.0,62180.0,0.160823]
[1728063697802,0.00082,62181.0,62180.0,0.167823]
[1728063698287,0.00082,62181.0,62180.0,0.181823]
[1728063698500,0.01724306,62181.0,62180.0,0.167823]
[1728063698716,0.01724306,62181.0,62180.0,0.174823]
[1728063699179,0.01724306,62181.0,62180.0,0.160823]
[1728063700580,0.01724306,62181.0,62180.0,0.188823]
[1728063701051,0.01724306,62181.0,62180.0,0.174823]
[1728063701269,0.01724306,62181.0,62180.0,0.188823]
[1728063702047,0.00082,62181.0,62180.0,0.188823]
[1728063702271,0.01732835,62181.0,62180.0,0.188823]
[1728063703681,0.01732835,62181.0,62180.0,0.193823]
[1728063703902,0.01732835,62181.0,62180.0,0.19476167]
[1728063704134,0.00082,62181.0,62180.0,0.20207205]
[1728063704369,0.01728402,62181.0,62180.0,0.20207205]
[1728063704834,0.00082,62181.0,62180.0,0.20407205]
[1728063705066,0.16079,62193.0,62189.0,0.160798]
[1728063705312,0.160794,62192.0,62182.0,0.321635]
[1728063705568,0.17425079,62192.0,62191.0,0.18553811]
[1728063705813,0.19071085,62192.0,62191.0,0.18553811]
[1728063706034,0.02991671,62192.0,62191.0,0.18553811]
[1728063707905,0.19070871,62192.0,62191.0,0.18553811]
[1728063708135,0.19070871,62192.0,62191.0,0.19753811]
[1728063710802,0.02991671,62192.0,62191.0,0.19753811]
[1728063711273,0.02991671,62192.0,62191.0,0.35833211]
[1728063711976,0.01645992,62192.0,62191.0,0.35833211]
[1728063712413,0.01645992,62192.0,62191.0,0.20541641]
[1728063712664,0.17725192,62192.0,62191.0,0.0198783]
[1728063712900,0.160792,62192.0,62191.0,0.0198783]
[1728063713151,0.1725779,62192.0,62191.0,0.0198783]
[1728063713612,0.0117859,62192.0,62191.0,0.0198783]
[1728063714064,0.413278,62194.0,62191.0,0.0198783]
[1728063714065,0.160792,62193.0,62191.0,0.0198783]
[1728063714285,0.0117859,62192.0,62191.0,0.0078783]
[1728063714519,0.1725779,62192.0,62191.0,0.003]
[1728063714740,0.160792,62192.0,62191.0,0.003]
[1728063714958,0.1725779,62192.0,62191.0,0.003]
[1728063715191,0.1725779,62192.0,62191.0,0.006]
[1728063715420,0.1725779,62192.0,62191.0,0.003]
[1728063715901,0.1725779,62192.0,62191.0,0.002]
[1728063716637,0.1725779,62192.0,62191.0,0.003]
[1728063717265,0.1725779,62192.0,62191.0,0.002]
[1728063717500,0.160802,62188.0,62187.0,0.18553811]
[1728063717960,0.0917,62194.0,62183.0,0.18553811]
[1728063718231,0.0797,62195.0,62176.0,0.2421421]
[1728063718232,0.0117859,62188.0,62176.0,0.2421421]
[1728063718458,0.160831,62177.0,62176.0,0.2421421]
[1728063718701,0.160828,62178.0,62176.0,0.2421421]
[1728063718921,0.01233951,62177.0,62176.0,0.2421421]
[1728063719151,0.01233951,62177.0,62176.0,0.001638]
[1728063719394,0.17317051,62177.0,62176.0,0.004638]
[1728063719644,0.01233951,62177.0,62176.0,0.004638]
[1728063719892,0.17317051,62177.0,62176.0,0.004638]
[1728063720583,0.01233951,62177.0,62176.0,0.36200911]
[1728063720800,0.01233951,62177.0,62176.0,0.190471]
[1728063721039,0.01233951,62177.0,62176.0,0.20117611]
[1728063721495,0.01233951,62177.0,62176.0,0.37600911]
[1728063724569,0.01233951,62177.0,62176.0,0.45690911]
[1728063724840,0.01233951,62177.0,62176.0,0.45990911]
[1728063725101,0.01233951,62177.0,62176.0,0.46190911]
[1728063725335,0.00082,62192.0,62191.0,0.160794]
[1728063725830,0.01112027,62192.0,62191.0,0.160794]
[1728063726305,0.00082,62192.0,62191.0,0.160794]
[1728063727212,0.00082,62192.0,62191.0,0.168794]
[1728063727694,0.00082,62192.0,62191.0,0.17082343]
[1728063727934,0.00082,62192.0,62191.0,0.18382343]
[1728063728181,0.00082,62192.0,62191.0,0.18500939]
[1728063728427,0.000819,62198.0,62197.0,0.160779]
[1728063728878,0.000819,62198.0,62197.0,0.34953209]
[1728063728883,0.000819,62198.0,62197.0,0.34631711]
[1728063729871,0.000819,62198.0,62197.0,0.35231711]
[1728063730616,0.000819,62198.0,62197.0,0.19753811]
[1728063731117,0.01135008,62198.0,62197.0,0.19753811]
[1728063731615,0.01135008,62198.0,62197.0,0.34631711]
[1728063731871,0.01135008,62198.0,62197.0,0.19653811]
[1728063732120,0.01135008,62198.0,62197.0,0.35731711]
[1728063732370,0.01135008,62198.0,62197.0,0.36731711]
[1728063732655,0.01135008,62198.0,62197.0,0.35631711]
[1728063732903,0.01135008,62198.0,62197.0,0.18553811]
[1728063733192,0.01135008,62198.0,62197.0,0.006]
[1728063733435,0.26292608,62198.0,62197.0,0.006]
[1728063733692,0.34392608,62198.0,62197.0,0.006]
[1728063733927,0.34392608,62198.0,62197.0,0.012]
[1728063734665,0.321583,62193.0,62187.0,0.4013091]
[1728063734910,0.160795,62191.0,62188.0,0.160802]
[1728063735161,0.171287,62192.0,62188.0,0.160802]
[1728063735410,0.01048136,62190.0,62189.0,0.34633811]
[1728063735670,0.01048818,62191.0,62189.0,0.34633811]
[1728063735921,0.321572,62195.0,62189.0,0.34633511]
[1728063736415,0.16079,62193.0,62190.0,0.160797]
[1728063737163,0.160785,62195.0,62190.0,0.321594]
[1728063737412,0.160785,62195.0,62192.0,0.160792]
[1728063737661,0.160785,62195.0,62193.0,0.18553811]
[1728063738428,0.01050864,62194.0,62193.0,0.18553811]
[1728063738931,0.01050864,62194.0,62193.0,0.18953811]
[1728063739409,0.01050864,62194.0,62193.0,0.18553811]
[1728063740136,0.160782,62196.0,62193.0,0.19253811]
[1728063740380,0.01052612,62194.0,62193.0,0.19853811]
[1728063740619,0.01053294,62195.0,62193.0,0.19253811]
[1728063740851,0.01052612,62194.0,62193.0,0.19953811]
[1728063741091,0.01052612,62194.0,62193.0,0.19253811]
[1728063741374,0.172619,62198.0,62197.0,0.160779]
[1728063741375,0.000819,62198.0,62197.0,0.160779]
[1728063741636,0.000819,62198.0,62197.0,0.34631711]
[1728063742996,0.000819,62198.0,62197.0,0.35031711]
[1728063743500,0.000819,62198.0,62197.0,0.35931711]
[1728063743737,0.000819,62198.0,62197.0,0.35031711]
[1728063744202,0.000819,62198.0,62197.0,0.36431711]
[1728063744679,0.000819,62198.0,62197.0,0.36031711]
[1728063744911,0.000819,62198.0,62197.0,0.37960351]
[1728063745409,0.000819,62198.0,62197.0,0.38460351]
[1728063745650,0.000819,62198.0,62197.0,0.40760351]
[1728063745900,0.000819,62198.0,62197.0,0.39360351]
[1728063746139,0.000819,62198.0,62197.0,0.40760351]
[1728063746377,0.000819,62198.0,62197.0,0.39360351]
[1728063747124,0.000819,62198.0,62197.0,0.54279022]
[1728063747357,0.000819,62198.0,62197.0,0.55679022]
[1728063747606,0.000819,62198.0,62197.0,0.55879022]
[1728063747902,0.00102,62199.0,62198.0,0.288776]
[1728063748135,0.00102,62199.0,62198.0,0.45196271]
[1728063748835,0.00102,62199.0,62198.0,0.160776]
[1728063749979,0.00102,62199.0,62198.0,0.014]
[1728063750215,0.00993254,62199.0,62198.0,0.014]
[1728063750428,0.00993254,62199.0,62198.0,0.174776]
[1728063750929,0.00993254,62199.0,62198.0,0.188776]
[1728063751161,0.00102,62199.0,62198.0,0.188776]
[1728063751384,0.00993254,62199.0,62198.0,0.174776]
[1728063751601,0.00993254,62199.0,62198.0,0.188776]
[1728063752062,0.00993254,62199.0,62198.0,0.174776]
[1728063752281,0.00993254,62199.0,62198.0,0.186776]
[1728063752500,0.00993254,62199.0,62198.0,0.200776]
[1728063752951,0.00993254,62199.0,62198.0,0.172776]
[1728063753195,0.00993254,62199.0,62198.0,0.3635041]
[1728063753439,0.00993254,62199.0,62198.0,0.265776]
[1728063753666,0.00102,62199.0,62198.0,0.265776]
[1728063753904,0.00102,62199.0,62198.0,0.169776]
[1728063754160,0.00102,62199.0,62198.0,0.165776]
[1728063754395,0.00102,62199.0,62198.0,0.172776]
[1728063754640,0.00102,62199.0,62198.0,0.19070877]
[1728063754874,0.00102,62199.0,62198.0,0.19234877]
[1728063755113,0.00102,62199.0,62198.0,0.18234877]
[1728063755610,0.00102,62199.0,62198.0,0.19534877]
[1728063755849,0.00102,62199.0,62198.0,0.18834877]
[1728063756082,0.00102,62199.0,62198.0,0.20234877]
[1728063757266,0.00102,62199.0,62198.0,0.18834877]
[1728063757738,0.00102,62199.0,62198.0,0.18934877]
[1728063757999,0.00102,62199.0,62198.0,0.19734877]
[1728063758462,0.00102,62199.0,62198.0,0.18434877]
[1728063758927,0.01025528,62199.0,62198.0,0.20334877]
[1728063759182,0.00102,62199.0,62198.0,0.19834877]
[1728063759414,0.00102,62199.0,62198.0,0.20334877]
[1728063762745,0.00102,62199.0,62198.0,0.18934877]
[1728063763043,0.00102,62199.0,62198.0,0.17534877]
[1728063763516,0.00102,62199.0,62198.0,0.18934877]
[1728063763777,0.00102,62199.0,62198.0,0.17534877]
[1728063764011,0.00102,62199.0,62198.0,0.18934877]
[1728063764253,0.00102,62199.0,62198.0,0.17534877]
[1728063764723,0.00102,62199.0,62198.0,0.18934877]
[1728063765192,0.00102,62199.0,62198.0,0.17534877]
[1728063765430,0.00102,62199.0,62198.0,0.18934877]
[1728063765668,0.00102,62199.0,62198.0,0.20334877]
[1728063765902,0.00102,62199.0,62198.0,0.19834877]
[1728063766634,0.00102,62199.0,62198.0,0.18434877]
[1728063766976,0.00102,62199.0,62198.0,0.17034877]
[1728063767205,0.00102,62199.0,62198.0,0.18434877]
[1728063768642,0.00102,62199.0,62198.0,0.19834877]
[1728063774146,0.00102,62199.0,62198.0,0.2006156]
[1728063775574,0.00102,62199.0,62198.0,0.2756156]
[1728063775826,0.1687,62218.0,62217.0,0.160727]
[1728063776079,0.1687,62218.0,62217.0,0.34626511]
[1728063776317,0.17805638,62218.0,62217.0,0.34626511]
[1728063776547,0.1687,62218.0,62217.0,0.34626511]
[1728063777028,0.0927,62218.0,62217.0,0.34626511]
[1728063777262,0.0927,62218.0,62217.0,0.58676921]
[1728063777263,0.00934955,62218.0,62217.0,0.58676921]
[1728063777496,0.0002,62219.0,62217.0,0.18553811]
[1728063777727,0.0002,62219.0,62218.0,0.160725]
[1728063779107,0.0002,62219.0,62218.0,0.171725]
[1728063779338,0.0002,62219.0,62218.0,0.183725]
[1728063782739,0.0002,62219.0,62218.0,0.171725]
[1728063782980,0.0002,62219.0,62218.0,0.19158944]
[1728063783210,0.0002,62219.0,62218.0,0.17958944]
[1728063783455,0.0002,62219.0,62218.0,0.16858944]
[1728063783901,0.0002,62219.0,62218.0,0.17958944]
[1728063784136,0.0002,62219.0,62218.0,0.19358944]
[1728063784851,0.0002,62219.0,62218.0,0.18258944]
[1728063785324,0.0002,62219.0,62218.0,0.16858944]
[1728063785560,0.0002,62219.0,62218.0,0.19658944]
[1728063785793,0.00953247,62219.0,62218.0,0.19658944]
[1728063786028,0.0002,62219.0,62218.0,0.18258944]
[1728063786297,0.00953247,62219.0,62218.0,0.18258944]
[1728063786521,0.00953247,62219.0,62218.0,0.19458944]
[1728063786765,0.00953247,62219.0,62218.0,0.18258944]
[1728063787032,0.00953247,62219.0,62218.0,0.42209354]
[1728063787273,0.0001,62224.0,62223.0,0.165712]
[1728063787524,0.2421441,62238.0,62233.0,0.45122411]
[1728063787779,0.00164,62238.0,62233.0,0.45122411]
[1728063788509,0.00164,62238.0,62233.0,0.44622411]
[1728063788764,0.00164,62238.0,62233.0,0.34622411]
[1728063790181,0.00164,62238.0,62233.0,0.36022411]
[1728063790771,0.0786,62236.0,62233.0,0.19953811]
[1728063790999,0.0786,62236.0,62233.0,0.174686]
[1728063791000,0.09954,62234.0,62233.0,0.174686]
[1728063791402,0.10911704,62234.0,62233.0,0.37422411]
[1728063791790,0.10911704,62234.0,62233.0,0.36022411]
[1728063792015,0.10911704,62234.0,62233.0,0.35922411]
[1728063792231,0.10911704,62234.0,62233.0,0.21253811]
[1728063792654,0.10911704,62234.0,62233.0,0.19853811]
[1728063792872,0.10911704,62234.0,62233.0,0.21253811]
[1728063793081,0.10911704,62234.0,62233.0,0.37322411]
[1728063793350,0.01121704,62234.0,62233.0,0.37322411]
[1728063793531,0.00164,62234.0,62233.0,0.37322411]
[1728063794456,0.00164,62234.0,62233.0,0.36022411]
[1728063794911,0.00164,62234.0,62233.0,0.37422411]
[1728063795147,0.00164,62234.0,62233.0,0.36022411]
[1728063795384,0.00164,62234.0,62233.0,0.34622411]
[1728063795617,0.00164,62234.0,62233.0,0.37422411]
[1728063795831,0.00164,62234.0,62233.0,0.3821959]
[1728063796039,0.00164,62234.0,62233.0,0.3681959]
[1728063796279,0.00164,62234.0,62233.0,0.3541959]
[1728063796507,0.00164,62234.0,62233.0,0.3681959]
[1728063796738,0.00164,62234.0,62233.0,0.3821959]
[1728063799007,0.00164,62234.0,62233.0,0.1935099]
[1728063799237,0.00164,62234.0,62233.0,0.19665779]
[1728063799477,0.00164,62234.0,62233.0,0.3821959]
[1728063799928,0.01121984,62234.0,62233.0,0.3681959]
[1728063800157,0.00164,62234.0,62233.0,0.3681959]
[1728063800805,0.00164,62234.0,62233.0,0.3541959]
[1728063801264,0.00164,62234.0,62233.0,0.3681959]
[1728063801534,0.00164,62234.0,62233.0,0.3821959]
[1728063801986,0.00164,62234.0,62233.0,0.3681959]
[1728063802208,0.00164,62234.0,62233.0,0.02197179]
[1728063802419,0.34940284,62234.0,62233.0,0.01997179]
[1728063802647,0.18871984,62234.0,62233.0,0.03297179]
[1728063802884,0.18871984,62234.0,62233.0,0.01997179]
[1728063803109,0.18871984,62234.0,62233.0,0.18065779]
[1728063803335,0.18871984,62234.0,62233.0,0.18665779]
[1728063803791,0.18871984,62234.0,62233.0,0.17465779]
[1728063804046,0.11051984,62234.0,62233.0,0.17465779]
[1728063804263,0.01121984,62234.0,62233.0,0.18065779]
[1728063804496,0.00164,62234.0,62233.0,0.17465779]
[1728063804724,0.00164,62234.0,62233.0,0.17365779]
[1728063804957,0.00164,62238.0,62233.0,0.17365779]
[1728063804958,0.00164,62238.0,62237.0,0.160676]
[1728063805251,0.00164,62238.0,62237.0,0.34621411]
[1728063806143,0.00164,62238.0,62237.0,0.35021411]
[1728063806378,0.00164,62238.0,62237.0,0.34621411]
[1728063807513,0.00082,62244.0,62243.0,0.16066]
[1728063807748,0.00082,62244.0,62243.0,0.34819811]
[1728063808438,0.00082,62255.0,62243.0,0.34819811]
[1728063808439,0.00082,62255.0,62254.0,0.160632]
[1728063808701,0.01042329,62255.0,62254.0,0.34617011]
[1728063809162,0.00082,62255.0,62254.0,0.34617011]
[1728063809840,0.00082,62255.0,62254.0,0.66537421]
[1728063810072,0.00082,62255.0,62254.0,0.35317011]
[1728063810304,0.02518652,62270.0,62269.0,0.160593]
[1728063810550,0.2405041,62273.0,62272.0,0.160585]
[1728063810763,0.2566787,62282.0,62269.0,0.18553811]
[1728063810764,0.2405041,62281.0,62278.0,0.16057]
[1728063811019,0.0161746,62282.0,62278.0,0.34610811]
[1728063812394,0.0161746,62282.0,62278.0,0.35510811]
[1728063812880,0.0161746,62282.0,62278.0,0.36910811]
[1728063813094,0.0161746,62282.0,62278.0,0.35510811]
[1728063813751,0.0161746,62282.0,62278.0,0.34610811]
[1728063813979,0.0161746,62282.0,62278.0,0.36010811]
[1728063814701,0.0161746,62282.0,62278.0,0.37410811]
[1728063814921,0.0161746,62282.0,62278.0,0.34610811]
[1728063815358,0.0161746,62282.0,62278.0,0.37410811]
[1728063815562,0.0161746,62282.0,62278.0,0.36010811]
[1728063815784,0.0161746,62282.0,62278.0,0.37410811]
[1728063816224,0.001219,62279.0,62278.0,0.36010811]
[1728063816439,0.001219,62279.0,62278.0,0.37410811]
[1728063817155,0.001219,62279.0,62278.0,0.22175748]
[1728063817373,0.001219,62279.0,62278.0,0.02221937]